Cogmind - Beta 16 @@@ ROGUE MODE // 2025.11.12 @ 09:55:25 Player: Demo Result: Destroyed by Y-54 Guardian with Gatling Laser Performance ------------- Evolutions (4) 2000 Regions Visited (6) 1200 Robots Destroyed (24) 120 Value Destroyed (2415) 2415 Prototype IDs (10) 200 Alien Tech Used (0) 0 Bonus (2335) 2335 TOTAL SCORE: 8270 Bonus ------- Pacifist 270 High Alert Combat Kills 376 Follower Combat Kills 189 Entered Garrisons 200 Used RIF Installer 500 Registered with UFD 300 Met Optimus in HQ 500 Cogmind --------- Core Integrity 0/850 Matter 202/300 Energy 83/100 System Corruption 5% Temperature Warm (119) Movement Core (50) Location -6/Garrison Parts ------- > --- POWER (1) -------- (None) > --- PROPULSION (5) --- (None) > --- UTILITY (7) ------ Relay Coupler [NC] (28) Relay Coupler [NC] (30) Relay Coupler [Sentry] (9) > --- WEAPON (2) ------- (None) > --- INVENTORY (5) ---- Advanced Reaction Control System Relay Coupler [NC] (25) Relay Coupler [NC] (23) Relay Coupler [Brawler] (22) Improved Remote Datajack Peak State ------------ > --- POWER ------------ Improved Deuterium Engine > --- PROPULSION ------- Light Treads Light Treads Light Treads Light Treads Medium Treads > --- UTILITY ---------- Huge Storage Unit Improved Signal Interpreter Relay Coupler [NC] Relay Coupler [NC] Relay Coupler [NC] Relay Coupler [Sentry] Relay Coupler [Hunter] > --- WEAPON ----------- Hardcell Cannon Hardcell Cannon > --- INVENTORY -------- Advanced Power Amplifier Deep Structural Scanner Improved Force Booster Advanced Reaction Control System Relay Coupler [NC] Relay Coupler [NC] Relay Coupler [NC] Relay Coupler [NC] Relay Coupler [NC] Relay Coupler [Swarmer] Relay Coupler [Cutter] Relay Coupler [Brawler] Relay Coupler [Brawler] Relay Coupler [Duelist] Relay Coupler [Sentry] Improved System Guard Mapping Drone Bay Tesla Rifle Autogun Gauss Rifle Improved Remote Datajack [Rating: 50] Favorites ----------- Power Improved Deuterium Engine Engine Improved Deuterium Engine Power Core Micro Fission Core Propulsion Light Treads Treads Light Treads Leg Carbon-fiber Leg Hover Unit Gravmag Array Flight Unit VTOL Module Utility Relay Coupler [NC] Device Improved Heat Sink Storage Huge Storage Unit Processor Targeting Computer Hackware Relay Coupler [NC] Protection Improved Medium Armor Plating Weapon Beam Cannon Energy Gun Tesla Rifle Energy Cannon Beam Cannon Ballistic Gun Improved Heavy Machine Gun Ballistic Cannon Hardcell Cannon Launcher Rocket Launcher Special Weapon Improved Remote Datajack Build | -11 -10 -10 -10 -9 -6 -6 ------- Run | Yrd Mat Min Sub Scr Fac Gar Slots Evolved 8 | . . . . . 8 . Power . | . . . . . . . Propulsion 3 | . . . . . 3 . Utility 5 | . . . . . 5 . Weapon . | . . . . . . . Parts Attached 49 | 2 2 1 . 1 4 39 Power 3 | . . . . . . 3 Engine 2 | . . . . . . 2 Core 1 | . . . . . . 1 Reactor . | . . . . . . . Propulsion 12 | 2 . . . . 2 8 Treads 8 | 2 . . . . . 6 Leg 1 | . . . . . . 1 Wheel . | . . . . . . . Hover 2 | . . . . . 2 . Flight 1 | . . . . . . 1 Utility 20 | . 2 . . 1 1 16 Device 4 | . . . . . . 4 Storage 1 | . . . . . . 1 Processor 4 | . 2 . . . 1 1 Hackware 10 | . . . . 1 . 9 Protection 1 | . . . . . . 1 Artifact . | . . . . . . . Weapon 14 | . . 1 . . 1 12 Energy Gun 2 | . . . . . . 2 Energy Cannon 1 | . . 1 . . . . Ballistic Gun 7 | . . . . . 1 6 Ballistic Cannon 2 | . . . . . . 2 Launcher 1 | . . . . . . 1 Special Weapon 1 | . . . . . . 1 Impact Weapon . | . . . . . . . Slashing Weapon . | . . . . . . . Piercing Weapon . | . . . . . . . Special Melee Weapon . | . . . . . . . Unidentified Prototypes 2 | . . . . . 2 . Parts Lost 28 | . . . . . . 28 Power 1 | . . . . . . 1 Propulsion 10 | . . . . . . 10 Utility 11 | . . . . . . 11 Weapon 6 | . . . . . . 6 Highest Loss Streak 19 | . . . . . . 19 To Critical Strikes . | . . . . . . . Average Backups 6 | . 3 4 5 4 5 7 Power . | . . . . . . . Propulsion . | . . 3 3 2 . . Utility 4 | . 1 1 1 1 3 6 Weapon 1 | . . . 1 1 1 1 Tool/Special . | . . . . . . . Unused Backups 22 | . 3 . . 3 2 14 Power 1 | . . . . . 1 . Propulsion 5 | . 1 . . 3 . 1 Utility 15 | . 2 . . . 1 12 Weapon 1 | . . . . . . 1 Tool/Special . | . . . . . . . Average Slot Usage (%) 73 | . 42 71 71 70 46 80 Engine 2 | . . . . . . 4 Treads 22 | . 28 28 28 28 10 20 Hover 1 | . . . . . 11 . Processor 15 | . 14 28 28 25 12 11 Hackware 14 | . . . . 2 6 23 Protection 1 | . . . . . . 2 Energy Gun 1 | . . . . . . 1 Energy Cannon 4 | . . 14 14 14 4 . Ballistic Gun 1 | . . . . . . 3 Ballistic Cannon 1 | . . . . . . 1 Special Weapon 1 | . . . . . . 3 Peak Build Rating 50 | 2 4 5 5 8 32 50 Average Rating 27 | 1 3 4 5 5 24 38 On Entrance 6 | . 2 4 5 5 8 24 Avg Prop Armor Cover (%) 31 | 41 40 32 32 32 37 17 Naked Turns . | . . . . . . . Heaviest Build 110 | . . 3 3 3 3 110 Greatest Support 108 | 3 3 3 3 3 3 108 Greatest Overweight (x) 2 | . . . . . . 2 Average Overweight (x) . | . . . . . . . Largest Inventory Capacity 25 | 5 5 5 5 5 5 25 Average Capacity 7 | 5 5 5 5 5 5 9 Most Carried 22 | . 5 5 5 5 5 22 Average Carried 6 | . 3 4 5 4 4 7 Final Capacity 5 | 5 5 5 5 5 5 5 Final Carried 5 | . 5 5 5 5 5 5 Class Distribution -------------------- 56% | Mutant 28% | Bothacker-Mutant 14% | Scavenger-Mutant Dominant Class ---------------- Mutant | -10/Materials Mutant | -10/Mines Mutant | -10/Subcaves Mutant | -9/Scraptown Mutant | -6/Factory Bothacker-Mutant | -6/Garrison Resources | -11 -10 -10 -10 -9 -6 -6 ----------- Run | Yrd Mat Min Sub Scr Fac Gar Matter Collected 1397 | 220 . . . 40 . 1137 Remotely . | . . . . . . . Salvage Created 873 | . . . . . . 873 Parts 32 | . . . . . . 32 Haulers Intercepted . | . . . . . . . Recyclers Shooed . | . . . . . . . Parts Field Recycled . | . . . . . . . Retrieved Matter . | . . . . . . . Parts Self-Destructed . | . . . . . . . Prevented . | . . . . . . . Parts Restored . | . . . . . . . Kills | -11 -10 -10 -10 -9 -6 -6 ------- Run | Yrd Mat Min Sub Scr Fac Gar Combat Hostiles Destroyed 23 | . . . . . . 23 Guns 12 | . . . . . . 12 Cannons 2 | . . . . . . 2 AOE 9 | . . . . . . 9 Classes Destroyed 6 | . . . . . . 6 Swarmer 6 | . . . . . . 6 Grunt 7 | . . . . . . 7 Duelist 3 | . . . . . . 3 Sentry 4 | . . . . . . 4 Programmer 2 | . . . . . . 2 Executioner 2 | . . . . . . 2 Best Kill Streak 4 | . . . . . . 4 Combat Bots Only 4 | . . . . . . 4 Max Kills in Single Turn 2 | . . . . . . 2 Gunslinging 1 | . . . . . . 1 Exploded 2 | . . . . . . 2 Melee . | . . . . . . . Uniques/NPCs Destroyed . | . . . . . . . Combat | -11 -10 -10 -10 -9 -6 -6 -------- Run | Yrd Mat Min Sub Scr Fac Gar Hostile Shots Fired 356 | . 6 . . . 16 334 Missed 129 | . 1 . . . 6 122 Hits 227 | . 5 . . . 10 212 Melee 4 | . . . . . . 4 Projectile 223 | . 5 . . . 10 208 Critical Strikes 11 | . . . . . 3 8 Damage Taken 3444 | . 51 . . . 155 3238 Core 857 | . . . . . 16 841 Absorbed by Shields . | . . . . . . . Core Remaining (%) 100 | 100 . . . 100 . . Volleys Fired 91 | . . 1 . . . 90 Largest 2 | . . 1 . . . 2 Hottest 110 | . . 60 . . . 110 Shots Fired 132 | . . 1 . . . 131 Gun 74 | . . . . . . 74 Cannon 36 | . . 1 . . . 35 Launcher 17 | . . . . . . 17 Special 5 | . . . . . . 5 Kinetic 97 | . . . . . . 97 Thermal 4 | . . 1 . . . 3 Explosive 17 | . . . . . . 17 Electromagnetic 9 | . . . . . . 9 Robot Hit Streak 10 | . . 1 . . . 10 Robot Miss Streak 6 | . . . . . . 6 Penetration Max 1 | . . . . . . 1 Secondary Targets 1 | . . . . . . 1 Max Gunslinging Chain 1 | . . . . . . 1 Shots Hit Robots 86 | . . 1 . . . 85 Core Hits 78 | . . . . . . 78 Critical Kills . | . . . . . . . Critical Parts Destroyed 1 | . . . . . . 1 Critical Strikes 5 | . . . . . . 5 Destroy 1 | . . . . . . 1 Blast 4 | . . . . . . 4 Melee Attacks . | . . . . . . . Impact . | . . . . . . . Slashing . | . . . . . . . Piercing . | . . . . . . . Sneak Attacks . | . . . . . . . Combat Hostiles . | . . . . . . . Follow-up Attacks . | . . . . . . . Damage Inflicted 3539 | . . 17 . . . 3522 Guns 1266 | . . . . . . 1266 Cannons 902 | . . 17 . . . 885 Explosions 1363 | . . . . . . 1363 Melee . | . . . . . . . Ramming 8 | . . . . . . 8 Kinetic 2069 | . . . . . . 2069 Thermal 17 | . . 17 . . . . Explosive 1363 | . . . . . . 1363 Electromagnetic 82 | . . . . . . 82 Impact . | . . . . . . . Slashing . | . . . . . . . Piercing . | . . . . . . . Highest Corruption 5 | . . . . . 2 5 Average Corruption 4 | . . . . . 1 4 Corruption Purged . | . . . . . . . Corruption Blocked . | . . . . . . . Effects 38 | . . . . . . 38 Message Errors 9 | . . . . . . 9 Matter Fused 7 | . . . . . . 7 Heat Flow Errors 3 | . . . . . . 3 Energy Discharges 2 | . . . . . . 2 Parts Fused 1 | . . . . . . 1 Data Loss (minor) 4 | . . . . . . 4 Data Loss (major) 7 | . . . . . . 7 Misfires 1 | . . . . . . 1 Alerts 3 | . . . . . . 3 Weapon Failures 1 | . . . . . . 1 Overload Shots . | . . . . . . . Overflow Damage 121 | . . . . . . 121 Projectiles 17 | . . . . . . 17 Explosions 104 | . . . . . . 104 Melee . | . . . . . . . Knockbacks 6 | . . . . . . 6 Impact . | . . . . . . . Kinetic 5 | . . . . . . 5 Secondary 1 | . . . . . . 1 Self-Inflicted Damage 16 | . . . . . . 16 Shots 1 | . . . . . . 1 Rammed 5 | . . . . . . 5 Targets Rammed 5 | . . . . . . 5 Kicked . | . . . . . . . Crushed . | . . . . . . . Highest Temperature 270 | . . 10 . . . 270 Average Temperature 103 | . . 7 . . . 105 Received Heat Transfer 549 | . 30 . . . . 519 Siege Activations . | . . . . . . . Martial Activations . | . . . . . . . Shielding Activations . | . . . . . . . Robots Disrupted . | . . . . . . . Combat Hostiles . | . . . . . . . Robots Corrupted . | . . . . . . . Combat Hostiles . | . . . . . . . Parts Fried . | . . . . . . . Impact Corruptions . | . . . . . . . Robots Melted . | . . . . . . . Combat Hostiles . | . . . . . . . Parts Melted . | . . . . . . . Heat Transferred 37 | . . 37 . . . . Parts Sabotaged . | . . . . . . . Parts Stolen . | . . . . . . . Parts Stripped . | . . . . . . . Power Chain Reactions . | . . . . . . . Alert | -11 -10 -10 -10 -9 -6 -6 ------- Run | Yrd Mat Min Sub Scr Fac Gar Maximum Alert Level 4 | . . . . . . 4 Low Security (%) 21 | 100 100 100 . . 100 3 Level 1 6 | . . . . . . 7 Level 2 20 | . . . . . . 24 Level 3 34 | . . . . . . 41 Level 4 18 | . . . . . . 22 Level 5 . | . . . . . . . High Security . | . . . . . . . Max Security . | . . . . . . . Peak Influence 1394 | . 30 3 . . 33 1394 Initial 23 | . . 3 . . . 23 Average 654 | . 11 . . . 6 802 Influence Increases 1627 | . 30 . . . 73 1524 Destroy 0b10 Robot/C 640 | . . . . . . 640 Destroy 0b10 Robot/NC 10 | . . . . . . 10 Destroy Leader 30 | . . . . . . 30 Allied During Kill 76 | . . . . . . 76 Successful Hack 57 | . . . . . 43 14 Anti-Garrison Action 500 | . . . . . . 500 Destroy Structure 119 | . . . . . . 119 Lose Combat Pursuer 195 | . 30 . . . 30 135 Influence Decreases 460 | . 20 10 . . 40 390 Entered New Map 17 | . . 7 . . . 10 Time Decay 63 | . 20 3 . . 40 . Lost Part 280 | . . . . . . 280 Lost Ally 100 | . . . . . . 100 Squads Dispatched 2 | . 2 . . . . . Investigation . | . . . . . . . Extermination . | . . . . . . . Reinforcement 2 | . 2 . . . . . Assault . | . . . . . . . Garrison . | . . . . . . . Intercept . | . . . . . . . Searches Triggered . | . . . . . . . Construction Impeded . | . . . . . . . Haulers Reinforced . | . . . . . . . Active Scanning Responses . | . . . . . . . Cargo Convoy Interrupts . | . . . . . . . Stealth | -11 -10 -10 -10 -9 -6 -6 --------- Run | Yrd Mat Min Sub Scr Fac Gar Distress Signals 1 | . . . . . . 1 Communications Jammed . | . . . . . . . Distress Signals . | . . . . . . . Times Spotted 53 | . 5 . . . 5 43 Peak Tracking Total 6 | . 4 . . . 3 6 Tactical Retreats 7 | . 1 . . . 1 5 Traps | -11 -10 -10 -10 -9 -6 -6 ------- Run | Yrd Mat Min Sub Scr Fac Gar Traps Triggered 6 | . . . . . 1 5 Indirectly . | . . . . . . . Trap Hack Attempts . | . . . . . . . Triggered . | . . . . . . . Disarmed . | . . . . . . . Reprogrammed . | . . . . . . . Reused . | . . . . . . . Traps Extracted . | . . . . . . . Installed . | . . . . . . . Triggered . | . . . . . . . Machines | -11 -10 -10 -10 -9 -6 -6 ---------- Run | Yrd Mat Min Sub Scr Fac Gar Machines Disabled 8 | . . . . . . 8 Max in Single Turn 1 | . . . . . . 1 Garrison Relay 5 | . . . . . . 5 Phase Generator 1 | . . . . . . 1 Machines Repaired . | . . . . . . . Machines Dismantled . | . . . . . . . Machines Sabotaged . | . . . . . . . Overloaded Fab Kills . | . . . . . . . Hacking | -11 -10 -10 -10 -9 -6 -6 --------- Run | Yrd Mat Min Sub Scr Fac Gar Machines Accessed 14 | . . . . 4 6 4 Terminals 8 | . . . . . 4 4 Fabricators 1 | . . . . . 1 . Repair Stations . | . . . . . . . Recycling Units . | . . . . . . . Scanalyzers . | . . . . . . . Garrison Access 1 | . . . . . 1 . Total Hacks 52 | . . . . 31 15 6 Successful 40 | . . . . 31 6 3 Failed 12 | . . . . . 9 3 Catastrophic 6 | . . . . . 5 1 Database Lockouts . | . . . . . . . Manual 9 | . . . . . 9 . Terminals 17 | . . . . . 11 6 Fabricators 3 | . . . . . 3 . Repair Stations . | . . . . . . . Recycling Units . | . . . . . . . Scanalyzers . | . . . . . . . Garrison Access 1 | . . . . . 1 . Terminal Hacks 35 | . . . . 31 1 3 Record 25 | . . . . 25 . . Robot Analysis 5 | . . . . 5 . . Open Door 1 | . . . . . . 1 Emergency Access Points 1 | . . . . . . 1 Locate Traps 1 | . . . . . 1 . Garrison Registry 1 | . . . . . . 1 Proto ID Catalog 1 | . . . . 1 . . Fabricator Hacks 1 | . . . . . 1 . Build 1 | . . . . . 1 . Repair Station Hacks . | . . . . . . . Recycling Unit Hacks . | . . . . . . . Scanalyzer . | . . . . . . . Garrison Access Hacks 1 | . . . . . 1 . Unlock Access 1 | . . . . . 1 . Unauthorized Hacks 3 | . . . . . 3 . Terminals 2 | . . . . . 2 . Botnet 2 | . . . . . 2 . Fabricators 1 | . . . . . 1 . Fabnet 1 | . . . . . 1 . Repair Stations . | . . . . . . . Recycling Units . | . . . . . . . Scanalyzers . | . . . . . . . Garrison Access . | . . . . . . . Data Cores Recovered . | . . . . . . . Used . | . . . . . . . Hacking Detections 8 | . . . . . 5 3 Full Trace Events . | . . . . . . . Feedback Events . | . . . . . . . Feedback Blocked . | . . . . . . . Robot Schematics Acquired . | . . . . . . . Robots Built . | . . . . . . . Authchips . | . . . . . . . Time 81 | . . . . . 81 . Total Robot Build Rating . | . . . . . . . Part Schematics Acquired . | . . . . . . . Parts Built . | . . . . . . . Authchips . | . . . . . . . Time . | . . . . . . . Total Part Build Rating . | . . . . . . . Part Studies Acquired . | . . . . . . . Parts Repaired . | . . . . . . . Time . | . . . . . . . Parts Recycled . | . . . . . . . Recycled Matter . | . . . . . . . Retrieved Matter . | . . . . . . . Retrieved Components . | . . . . . . . Parts Scanalyzed . | . . . . . . . Part Schematics Acquired . | . . . . . . . Parts Damaged . | . . . . . . . Bothacking | -11 -10 -10 -10 -9 -6 -6 ------------ Run | Yrd Mat Min Sub Scr Fac Gar Used RIF Installer 1 | . . . . . . 1 Robots Hacked 4 | . . . . . . 4 Non-combat . | . . . . . . . Combat 4 | . . . . . . 4 Robot Hacks Applied 4 | . . . . . . 4 formatsys_high 4 | . . . . . . 4 Relay Couplers Released 23 | . . . . . . 23 Machine Destruction 19 | . . . . . . 19 Programmers 4 | . . . . . . 4 Attached 9 | . . . . . . 9 Fabnet Peak Effective % . | . . . . . . . Robots Rewired 2 | . . . . . . 2 Allies Hacked . | . . . . . . . Hacks Repelled . | . . . . . . . Allies | -11 -10 -10 -10 -9 -6 -6 -------- Run | Yrd Mat Min Sub Scr Fac Gar Total Allies 6 | . . . . . . 6 Largest Group 5 | . . . . . . 5 Highest-Rated Group 190 | . . . . . . 190 Highest-Rated Ally 51 | . . . . . . 51 Total Orders . | . . . . . . . Ally Attacks 45 | . . . . . . 45 Total Damage 1071 | . . . . . . 1071 Kills 10 | . . . . . . 10 Allies Corrupted . | . . . . . . . Allies Melted . | . . . . . . . Intel | -11 -10 -10 -10 -9 -6 -6 ------- Run | Yrd Mat Min Sub Scr Fac Gar Active Infowar (turns) . | . . . . . . . Robot Analysis Total 5 | . . . . 5 . . Derelict Logs Recovered 1 | . . 1 . . . . Drone Launches . | . . . . . . . Drone Recoveries . | . . . . . . . Exploration | -11 -10 -10 -10 -9 -6 -6 ------------- Run | Yrd Mat Min Sub Scr Fac Gar Turns Passed 3225 | 14 89 96 125 679 251 1971 Spaces Moved 3347 | 22 126 92 132 1342 466 1167 Core 2396 | 22 126 92 132 1342 466 216 Treads 794 | . . . . . . 794 Legs . | . . . . . . . Wheels . | . . . . . . . Hover 66 | . . . . . . 66 Flight 91 | . . . . . . 91 Fastest Speed 35 | 50 50 50 50 50 50 35 Average Speed 76 | 50 50 50 50 50 50 126 Slowest Speed 240 | 50 50 50 50 50 50 240 Overloaded Moves . | . . . . . . . Propulsion Burnouts . | . . . . . . . Robots Hopped . | . . . . . . . Potential Cave-ins . | . . . . . . . Cave-ins Triggered . | . . . . . . . Exploration Rate (%) 38 | 3 34 30 14 83 19 87 Regions Visited 6 Branch Regions 3 Pre-discovered Areas 5 | . . . . 5 . . Known Exits Taken 1 | . . . . . 1 . Unknown Exits Taken 5 | 1 1 1 1 1 . . Scrap Searched 5 | . . . . 5 . . Spaces Dug 23 | . . . . . . 23 Terrain Destroyed 188 | . . . . . . 188 Melee . | . . . . . . . Projectile 6 | . . . . . . 6 AOE 182 | . . . . . . 182 Terrain Rammed . | . . . . . . . Walls Destroyed . | . . . . . . . Machines Disabled . | . . . . . . . Actions | -11 -10 -10 -10 -9 -6 -6 --------- Run | Yrd Mat Min Sub Scr Fac Gar Total 3869 | 23 151 140 190 1351 482 1532 Wait 219 | . 13 44 59 . 9 94 Move 3341 | 21 125 91 131 1341 465 1167 Hop . | . . . . . . . Pick Up 41 | . 8 1 . 4 1 27 Fast Attach 42 | 2 2 . . 1 4 33 Attach 12 | . . 2 . . . 10 Detach 5 | . . 1 . . 1 3 Swap 9 | . . . . . . 9 Drop 36 | . 3 . . 5 2 26 Fire 91 | . . 1 . . . 90 Melee . | . . . . . . . Ram . | . . . . . . . Kick . | . . . . . . . Crush 5 | . . . . . . 5 Escape Stasis 60 | . . . . . . 60 Rewire 8 | . . . . . . 8 Trap . | . . . . . . . Miscellaneous . | . . . . . . . Route ------- -11/Scrapyard -10/Materials (discovered 2 exits: [*Mat] / [*Min]) -10/Mines (discovered 2 exits: [*Mat] / [*Sub]) -10/Subcaves -9/Scraptown (discovered 2 exits: *Fac x2) -6/Factory (discovered 4 exits: Fac / Low x2 / Gar) -6/Garrison (discovered 3 exits: *Fac x3) History --------- Turn | Location | Event 4 | -11/Scrapyard | Discovered new exit (range 16) 15 | -11/Scrapyard | Entered Materials 76 | -10/Materials | Discovered new exit (range 15) 94 | -10/Materials | Discovered new exit (range 10) 104 | -10/Materials | Entered Mines 110 | -10/Mines | Discovered new exit (range 13) 126 | -10/Mines | Received a Rocket Launcher from a helpful Derelict 188 | -10/Mines | Discovered new exit (range 4) 200 | -10/Mines | Entered Subcaves 201 | -10/Subcaves | Approached by a straggling Scientist 307 | -10/Subcaves | Shifting Twisted Machinery released Shrapnel Trap 318 | -10/Subcaves | Build established: Mutant 323 | -10/Subcaves | Scientist uncovered a shortcut to Scraptown 325 | -10/Subcaves | Entered Scraptown 419 | -9/Scraptown | Discovered new exit (range 11) 555 | -9/Scraptown | Visited UFD Registry 555 | -9/Scraptown | Registered with UFD as "Flakmaster" 564 | -9/Scraptown | Visited Science Testing Area 584 | -9/Scraptown | Visited Cave Peace 587 | -9/Scraptown | Visited IN-MT5's Study 595 | -9/Scraptown | Visited Fellowship of the Rings 625 | -9/Scraptown | Visited Shadow of the Wyrm 658 | -9/Scraptown | Visited Analyses Database 671 | -9/Scraptown | Visited Abandonware Association 677 | -9/Scraptown | Learned abandonware demo "HACKBUD.EXE" 677 | -9/Scraptown | Learned abandonware demo "SHUTEYE.EXE" 707 | -9/Scraptown | Visited Research Penetration Think Tank 718 | -9/Scraptown | Visited Derelict Rescue Squad 725 | -9/Scraptown | Visited DA-N13 Charitable Foundation 730 | -9/Scraptown | Found DCF Scrap (27 items) 736 | -9/Scraptown | Visited Science Guys 756 | -9/Scraptown | Visited Observation Area 770 | -9/Scraptown | Visited Curators Association 784 | -9/Scraptown | Visited Cartography Club 839 | -9/Scraptown | Found Deep Structural Scanner 845 | -9/Scraptown | Learned location of Storage (-9) 845 | -9/Scraptown | Learned location of Lower Caves (-7) 845 | -9/Scraptown | Learned location of Cetus (-5) 845 | -9/Scraptown | Learned location of Hub_04(d) (-5) 845 | -9/Scraptown | Learned location of Armory (-3) 845 | -9/Scraptown | Learned 12 Materials zone layouts 845 | -9/Scraptown | Learned 12 Factory zone layouts 845 | -9/Scraptown | Learned 4 Storage zone layouts 845 | -9/Scraptown | Learned 4 Recycling zone layouts 845 | -9/Scraptown | Learned 20 Upper Caves zone layouts 845 | -9/Scraptown | Learned 4 Hub_04(d) zone layouts 845 | -9/Scraptown | Learned Storage emergency access door positions 845 | -9/Scraptown | Learned location of 1 exit from Factory 845 | -9/Scraptown | Learned location of 1 exit from Upper Caves 845 | -9/Scraptown | Learned location of 3 exits from Proximity Caves 845 | -9/Scraptown | Learned 12 Research zone layouts 975 | -9/Scraptown | Met Optimus 975 | -9/Scraptown | Accepted into 0bPrime 1002 | -9/Scraptown | Discovered new exit (range 5) 1004 | -9/Scraptown | Entered Factory 1004 | -6/Factory | Evolved 8 slots: Propulsion x3, Utility x5 1005 | -6/Factory | Identified exit to Lower Caves 1006 | -6/Factory | Identified exit to Factory 1251 | -6/Factory | Identified exit to Garrison 1255 | -6/Factory | Entered Garrison 1317 | -6/Garrison | Spotted B-75 Beast 1320 | -6/Garrison | Phase Generator disabled 1339 | -6/Garrison | Spotted Executioner 1345 | -6/Garrison | Triggered checkpoint 1363 | -6/Garrison | Discovered new exit (range 9) 1369 | -6/Garrison | Identified exit to Factory 1461 | -6/Garrison | Installed Relay Interface Framework 1465 | -6/Garrison | Triggered checkpoint 1499 | -6/Garrison | Garrison Relay disabled 1637 | -6/Garrison | Discovered exit to Factory (range 15) 1986 | -6/Garrison | Lost 3 parts (1n1u1w) 2095 | -6/Garrison | Triggered checkpoint 2255 | -6/Garrison | Build established: Scavenger-Mutant 2302 | -6/Garrison | Garrison Relay disabled 2375 | -6/Garrison | Triggered checkpoint 2405 | -6/Garrison | Garrison Relay disabled 2557 | -6/Garrison | Triggered checkpoint 2613 | -6/Garrison | Discovered exit to Factory (range 6) 2647 | -6/Garrison | Core integrity fell below 50% 2720 | -6/Garrison | Build established: Bothacker-Mutant 2755 | -6/Garrison | Triggered checkpoint 2790 | -6/Garrison | Garrison Relay disabled 2794 | -6/Garrison | Triggered checkpoint 2894 | -6/Garrison | Garrison Relay disabled 3081 | -6/Garrison | Discovered exit to Factory (range 30) 3081 | -6/Garrison | Discovered exit to Factory (range 65) 3081 | -6/Garrison | Discovered exit to Factory (range 16) 3169 | -6/Garrison | Spotted Executioner 3197 | -6/Garrison | Destroyed Executioner 3206 | -6/Garrison | Destroyed Executioner 3219 | -6/Garrison | Lost 4 allies 3223 | -6/Garrison | Core integrity fell below 20% 3226 | -6/Garrison | Destroyed by Y-54 Guardian with Gatling Laser Last Messages --------------- 03220_ Slug penetrates Y-54 Guardian. 03221_ Hardcell Cannon destroyed. 03221_ Adv. Power Amplifier destroyed. 03221_ Gauss Rifle destroyed. 03222_ Penetrated by Slug. 03223_ Dropped Huge Storage Unit. 03223_ Mapping Drone Bay crushed and broken. 03223_ Tesla Rifle crushed and broken. 03223_ Deep Structural Scanner crushed and broken. 03223_ Relay Coupler [Brawler] crushed and broken. 03223_ Relay Coupler [Cutter] crushed and broken. 03223_ Imp. System Guard crushed and broken. 03224_ Relay Coupler [NC] destroyed. 03224_ Critical hit (Blast). 03224_ Knocked back. 03224_ Relay Coupler [Hunter] destroyed. 03225_ Acquired Relay Coupler [NC]. Map ----- +----------------------------------------------------+ | ?????????????????????????#######??????????# | | ?????????????????????????#!! !!#??????????# | | ?????????????????????????#!! !!#??????????# | | ????????#####????????????# #??????????# | | ????????#"""#????????????#!! !!#??????????# | | ????????#" "#????????????#!! !!#??????????#### | | ????????#" "#????????????### ###?????????????# | | ????????#" "#??????????????# #????#####?????## # | | ????????# ^#??????????????#^#????# #?????# | | ????????## ##??????????????# ###### ######## | | ?????????# #???????????????# ^ # | | ?????##### #???????????????# ###### ######## # | | ?????# # #???????????????# #???# #?????# | | ###### # #???????????????###???## #?????### # | | # *#??????????#####"#####?# #???????# # | | # ##### ## #??????????#""""%""""#?# #???????# # | | #???# ## #??????????#" %%%% "#?# #???????# # | | #???# ## #??????????#"""%[""""#?# #???????# # | | #???# ## #??????????#""" ^ ""#?# #???????# # | | # #???# ## #??????????#" ^ "#?# #???????# # | | # ##### ## #??????????#""" """#?# #???????# # | | # ## #??????????##### ;###### #???????# # | | # ######## #????????????###%; ## %######### # | | # ######## #######??????#!!%% # | | #??????#%%h= | | #?????##@=YBB %% | | ##### ### #### #?????#!!*!BB # ### # ####### | | ????# #?# #??# #?????##*!!##%# # # ##? | | ????#^ #?# #### #??????#[!%#?## # # ## | | ????#^ #?# #??????#!![#??#### # # | | ????#^ ### #### #??????#*%=#?????# # | | ????# ^ #??# ######## [ #?????# # | | ????# ### #??# ## ## ####### # | | ????# #?# #?## ## ## " | | ????# ### ### ####### # | | ????# #?????# # | | ????# #?????# # | | ????########## ## ## #?????# # | | ???????????### ## ## ####### # ## | | ???????????# " %## ##? | | ???????????# " ############## ###?? | | ???????##### " ###???????????##???? | | ???????# " =#????????????????? | | ???????# ##### ## ##^^^###%#????????????##### | | ######## ##### ## ##^^^### ##############" "" | | ^ *! [ | | ^ ##########" | | # ############ #?????# | | # #??????????######*[ ## #### #### ### #?????? | | # #???????????????#[= ## #??# #?## #?# #?????? | +----------------------------------------------------+ Best States ------------- Heat Dissipation 51 Energy Generation 16 Energy Capacity 290 Matter Stores 300 Matter Capacity 300 Sight Range 16 Terrain Scan Density 10 Power Amplification 30 Armor Coverage 225 Evasion (%) 63 Targeting Accuracy 10 Melee Accuracy 6 Recoil Reduction 5 Defensive Hacking 10 Relay Coupler Types 3 Relay Coupler Value 113 Item Schematics ----------------- None Robot Schematics ------------------ None Fabricated ------------ Nothing Repaired ---------- Nothing Studied --------- None Alien Tech Used ----------------- None Achievements -------------- None Challenges ------------ None Game ------ Seed TargetingHypercooledBasin Manual? 0 Play Time 00:28:41 Cumulative 398.4 hours Start 2025.11.12 @ 09:27:59 End 2025.11.12 @ 09:55:25 Sessions 1 Manual Loads 0 Difficulty Rogue Special Mode None Game No. 368 Rogue 368 Adventurer 0 Explorer 0 Win Type - Total 3 Types 2/1/0/0/0/0/0/0/0/0 Lore% 84 Gallery% 84 Achievement% 62 Wizard Run 0 Options --------- Layout 1 ASCII 0 Keyboard 0 Movement Numpad Keybinds 0 Fullscreen 1 Font 24/Smallcaps Map View 50x35 Zoom Use 0% Tactical HUD 1 Map Filters NONE Filters NONE Steam 1 RUN: 7b2bab4c-20ee-461a-b64c-43d3dd7096da